[Event "Titled Tuesday Blitz October 31 Early 2023"]
[White "vishwa_vijeta"]
[Black "Zivic, Dragan"]
[BlackFideId "904740"]
[WhiteElo "2487"]
[BlackElo "2259"]
[Result "0-1"]
[Round "8"]
[TimeControl "180+1"]
[Date "2023.10.31"]
[WhiteClock "0:00:00"]
[BlackClock "0:00:28"]
[Board "119"]

1. e4 {[%clk 0:03:00]}  c6 {[%clk 0:02:59]} 2. Nf3 {[%clk 0:03:00]}  d5 {[%clk 0:02:58]} 3. exd5 {[%clk 0:02:56]}  cxd5 {[%clk 0:02:58]} 4. d4 {[%clk 0:02:57]}  Nc6 {[%clk 0:02:57]} 5. c3 {[%clk 0:02:57]}  Bf5 {[%clk 0:02:55]} 6. Bd3 {[%clk 0:02:57]}  Bxd3 {[%clk 0:02:54]} 7. Qxd3 {[%clk 0:02:58]}  e6 {[%clk 0:02:54]} 8. O-O {[%clk 0:02:59]}  Bd6 {[%clk 0:02:52]} 9. Re1 {[%clk 0:02:58]}  Nge7 {[%clk 0:02:52]} 10. h3 {[%clk 0:02:57]}  O-O {[%clk 0:02:51]} 11. Bg5 {[%clk 0:02:56]}  Qc7 {[%clk 0:02:48]} 12. Nbd2 {[%clk 0:02:56]}  h6 {[%clk 0:02:47]} 13. Bh4 {[%clk 0:02:35]}  Nf5 {[%clk 0:02:46]} 14. g4 {[%clk 0:02:31]}  Nxh4 {[%clk 0:02:43]} 15. Nxh4 {[%clk 0:02:32]}  Rad8 {[%clk 0:02:28]} 16. Ng2 {[%clk 0:02:30]}  e5 {[%clk 0:02:25]} 17. dxe5 {[%clk 0:02:24]}  Nxe5 {[%clk 0:02:12]} 18. Qe2 {[%clk 0:01:57]}  Rfe8 {[%clk 0:02:09]} 19. Nf3 {[%clk 0:01:54]}  Nc4 {[%clk 0:02:03]} 20. Qc2 {[%clk 0:01:31]}  Qb6 {[%clk 0:01:54]} 21. b3 {[%clk 0:01:25]}  Na3 {[%clk 0:01:53]} 22. Qd3 {[%clk 0:01:18]}  Rxe1+ {[%clk 0:01:51]} 23. Rxe1 {[%clk 0:01:18]}  Bc5 {[%clk 0:01:51]} 24. Re2 {[%clk 0:01:14]}  Nb5 {[%clk 0:01:48]} 25. Nf4 {[%clk 0:01:12]}  d4 {[%clk 0:01:45]} 26. c4 {[%clk 0:00:36]}  Nc3 {[%clk 0:01:45]} 27. Re5 {[%clk 0:00:35]}  Bd6 {[%clk 0:01:29]} 28. Nd5 {[%clk 0:00:31]}  Nxd5 {[%clk 0:01:11]} 29. Rxd5 {[%clk 0:00:30]}  Bc5 {[%clk 0:01:04]} 30. Qe4 {[%clk 0:00:25]}  Rxd5 {[%clk 0:01:03]} 31. Qxd5 {[%clk 0:00:26]}  a5 {[%clk 0:00:59]} 32. Ne5 {[%clk 0:00:26]}  Qd6 {[%clk 0:00:43]} 33. Qxf7+ {[%clk 0:00:25]}  Kh7 {[%clk 0:00:41]} 34. Qf5+ {[%clk 0:00:25]}  Kg8 {[%clk 0:00:38]} 35. Nd3 {[%clk 0:00:23]}  b6 {[%clk 0:00:36]} 36. Qd5+ {[%clk 0:00:22]}  Qxd5 {[%clk 0:00:35]} 37. cxd5 {[%clk 0:00:23]}  Kf8 {[%clk 0:00:35]} 38. Nxc5 {[%clk 0:00:21]}  bxc5 {[%clk 0:00:35]} 39. Kf1 {[%clk 0:00:21]}  Ke7 {[%clk 0:00:35]} 40. Ke2 {[%clk 0:00:22]}  Kd6 {[%clk 0:00:36]} 41. Kd3 {[%clk 0:00:22]}  Kxd5 {[%clk 0:00:37]} 42. f4 {[%clk 0:00:22]}  a4 {[%clk 0:00:36]} 43. h4 {[%clk 0:00:21]}  axb3 {[%clk 0:00:34]} 44. axb3 {[%clk 0:00:21]}  g6 {[%clk 0:00:34]} 45. Kd2 {[%clk 0:00:12]}  Ke4 {[%clk 0:00:33]} 46. f5 {[%clk 0:00:12]}  gxf5 {[%clk 0:00:33]} 47. g5 {[%clk 0:00:12]}  hxg5 {[%clk 0:00:28]} 48. h5 {[%clk 0:00:00]}  Ke5 {[%clk 0:00:28]} 0-1


[Site "https://www.chess.com"]

[Event "Titled Tuesday Blitz October 31 Early 2023"]
[White "Arutla, Aditya"]
[Black "Ng, Gary"]
[WhiteFideId "30961998"]
[BlackFideId "2604914"]
[WhiteElo "2479"]
[BlackElo "2266"]
[Result "1-0"]
[Round "8"]
[TimeControl "180+1"]
[Date "2023.10.31"]
[WhiteClock "0:00:39"]
[BlackClock "0:00:57"]
[Board "120"]

1. e4 {[%clk 0:03:00]}  c6 {[%clk 0:03:00]} 2. d4 {[%clk 0:02:59]}  d5 {[%clk 0:03:01]} 3. e5 {[%clk 0:02:59]}  Bf5 {[%clk 0:03:00]} 4. h4 {[%clk 0:02:59]}  h6 {[%clk 0:02:59]} 5. g4 {[%clk 0:02:48]}  Bc8 {[%clk 0:02:55]} 6. Nc3 {[%clk 0:02:43]}  e6 {[%clk 0:02:55]} 7. Be3 {[%clk 0:02:40]}  c5 {[%clk 0:02:55]} 8. dxc5 {[%clk 0:02:36]}  Nd7 {[%clk 0:02:53]} 9. b4 {[%clk 0:02:31]}  Nxe5 {[%clk 0:02:49]} 10. f4 {[%clk 0:02:18]}  Nc6 {[%clk 0:02:44]} 11. Bb5 {[%clk 0:02:14]}  Ne7 {[%clk 0:02:33]} 12. Nf3 {[%clk 0:02:13]}  a6 {[%clk 0:02:32]} 13. Ba4 {[%clk 0:02:11]}  Bd7 {[%clk 0:02:27]} 14. a3 {[%clk 0:02:09]}  Qc7 {[%clk 0:02:08]} 15. Qd2 {[%clk 0:02:01]}  g6 {[%clk 0:02:04]} 16. h5 {[%clk 0:01:50]}  Bg7 {[%clk 0:02:01]} 17. hxg6 {[%clk 0:01:50]}  Nxg6 {[%clk 0:02:01]} 18. O-O-O {[%clk 0:01:43]}  O-O-O {[%clk 0:01:55]} 19. Rhf1 {[%clk 0:01:34]}  Na7 {[%clk 0:01:44]} 20. Bxd7+ {[%clk 0:01:25]}  Rxd7 {[%clk 0:01:45]} 21. Bd4 {[%clk 0:01:24]}  Bxd4 {[%clk 0:01:36]} 22. Nxd4 {[%clk 0:01:25]}  Re8 {[%clk 0:01:29]} 23. Rde1 {[%clk 0:01:21]}  Kb8 {[%clk 0:01:22]} 24. f5 {[%clk 0:01:21]}  Ne5 {[%clk 0:01:20]} 25. fxe6 {[%clk 0:01:19]}  fxe6 {[%clk 0:01:21]} 26. Qxh6 {[%clk 0:01:11]}  Nxg4 {[%clk 0:01:15]} 27. Qg6 {[%clk 0:00:53]}  Ree7 {[%clk 0:01:04]} 28. Qxg4 {[%clk 0:00:50]}  e5 {[%clk 0:01:04]} 29. Rf8+ {[%clk 0:00:44]}  Nc8 {[%clk 0:01:04]} 30. Nf5 {[%clk 0:00:44]}  Rf7 {[%clk 0:01:04]} 31. Rxf7 {[%clk 0:00:42]}  Rxf7 {[%clk 0:01:04]} 32. Nxd5 {[%clk 0:00:40]}  Qd7 {[%clk 0:01:02]} 33. Nfe3 {[%clk 0:00:39]}  Qa4 {[%clk 0:01:00]} 34. Qxc8+ {[%clk 0:00:39]}  Kxc8 {[%clk 0:00:57]} 35. Nb6+ {[%clk 0:00:39]} 1-0


[Site "https://www.chess.com"]

[Event "Titled Tuesday Blitz October 31 Early 2023"]
[White "Goh, Zi Han"]
[Black "Aash20"]
[WhiteFideId "5819156"]
[WhiteElo "2258"]
[BlackElo "2471"]
[Result "1-0"]
[Round "8"]
[TimeControl "180+1"]
[Date "2023.10.31"]
[WhiteClock "0:00:15"]
[BlackClock "0:00:26"]
[Board "121"]

1. d4 {[%clk 0:03:00]}  d5 {[%clk 0:02:59]} 2. c4 {[%clk 0:02:58]}  c6 {[%clk 0:02:59]} 3. Nf3 {[%clk 0:02:57]}  Nf6 {[%clk 0:02:58]} 4. Nc3 {[%clk 0:02:57]}  dxc4 {[%clk 0:02:55]} 5. a4 {[%clk 0:02:57]}  Bg4 {[%clk 0:02:54]} 6. e3 {[%clk 0:02:42]}  e6 {[%clk 0:02:52]} 7. Bxc4 {[%clk 0:02:40]}  Bb4 {[%clk 0:02:44]} 8. O-O {[%clk 0:02:37]}  O-O {[%clk 0:02:42]} 9. h3 {[%clk 0:02:37]}  Bh5 {[%clk 0:02:39]} 10. Qb3 {[%clk 0:02:19]}  Bxc3 {[%clk 0:02:36]} 11. bxc3 {[%clk 0:02:20]}  Bxf3 {[%clk 0:02:27]} 12. Qxb7 {[%clk 0:02:08]}  Bxg2 {[%clk 0:02:03]} 13. Kxg2 {[%clk 0:02:01]}  Nbd7 {[%clk 0:01:56]} 14. Qb1 {[%clk 0:01:49]}  Nb6 {[%clk 0:01:54]} 15. Be2 {[%clk 0:01:45]}  Nbd5 {[%clk 0:01:52]} 16. Qd3 {[%clk 0:01:39]}  Re8 {[%clk 0:01:41]} 17. e4 {[%clk 0:01:38]}  Ne7 {[%clk 0:01:40]} 18. Kh1 {[%clk 0:01:33]}  Ng6 {[%clk 0:01:38]} 19. Rg1 {[%clk 0:01:30]}  Qc7 {[%clk 0:01:34]} 20. Bg5 {[%clk 0:01:26]}  Nf4 {[%clk 0:01:07]} 21. Qg3 {[%clk 0:00:51]}  Nxe4 {[%clk 0:01:04]} 22. Qxf4 {[%clk 0:00:46]}  Qxf4 {[%clk 0:00:59]} 23. Bxf4 {[%clk 0:00:46]}  Nxc3 {[%clk 0:00:58]} 24. Bf3 {[%clk 0:00:42]}  Nd5 {[%clk 0:00:53]} 25. Be5 {[%clk 0:00:43]}  g6 {[%clk 0:00:49]} 26. Rgc1 {[%clk 0:00:39]}  Rac8 {[%clk 0:00:49]} 27. Rc5 {[%clk 0:00:39]}  f6 {[%clk 0:00:36]} 28. Bg3 {[%clk 0:00:37]}  Red8 {[%clk 0:00:31]} 29. Rac1 {[%clk 0:00:36]}  Ne7 {[%clk 0:00:31]} 30. R1c4 {[%clk 0:00:17]}  Kf7 {[%clk 0:00:30]} 31. Bxc6 {[%clk 0:00:17]}  Nxc6 {[%clk 0:00:29]} 32. Rxc6 {[%clk 0:00:17]}  Rxc6 {[%clk 0:00:30]} 33. Rxc6 {[%clk 0:00:18]}  Rxd4 {[%clk 0:00:30]} 34. Rc7+ {[%clk 0:00:19]}  Kg8 {[%clk 0:00:31]} 35. Rxa7 {[%clk 0:00:20]}  e5 {[%clk 0:00:31]} 36. a5 {[%clk 0:00:20]}  Ra4 {[%clk 0:00:30]} 37. a6 {[%clk 0:00:19]}  h5 {[%clk 0:00:30]} 38. Kg2 {[%clk 0:00:17]}  g5 {[%clk 0:00:30]} 39. f3 {[%clk 0:00:16]}  Ra2+ {[%clk 0:00:29]} 40. Bf2 {[%clk 0:00:16]}  f5 {[%clk 0:00:29]} 41. Ra8+ {[%clk 0:00:16]}  Kg7 {[%clk 0:00:30]} 42. a7 {[%clk 0:00:17]}  e4 {[%clk 0:00:29]} 43. fxe4 {[%clk 0:00:17]}  fxe4 {[%clk 0:00:30]} 44. Re8 {[%clk 0:00:18]}  e3 {[%clk 0:00:27]} 45. a8=Q {[%clk 0:00:18]}  Rxf2+ {[%clk 0:00:26]} 46. Kg1 {[%clk 0:00:17]}  Rf7 {[%clk 0:00:26]} 47. Rxe3 {[%clk 0:00:15]}  g4 {[%clk 0:00:25]} 48. hxg4 {[%clk 0:00:15]}  hxg4 {[%clk 0:00:26]} 1-0


[Site "https://www.chess.com"]

[Event "Titled Tuesday Blitz October 31 Early 2023"]
[White "Akylbek2021"]
[Black "Prieto Aranguren, Alain"]
[BlackFideId "2268906"]
[WhiteElo "2246"]
[BlackElo "2405"]
[Result "0-1"]
[Round "8"]
[TimeControl "180+1"]
[Date "2023.10.31"]
[WhiteClock "0:00:00"]
[BlackClock "0:00:41"]
[Board "124"]

1. Nf3 {[%clk 0:02:57]}  d5 {[%clk 0:02:55]} 2. b3 {[%clk 0:02:57]}  Nf6 {[%clk 0:02:55]} 3. Bb2 {[%clk 0:02:58]}  g6 {[%clk 0:02:55]} 4. d4 {[%clk 0:02:53]}  Bg7 {[%clk 0:02:55]} 5. Nbd2 {[%clk 0:02:54]}  O-O {[%clk 0:02:55]} 6. e3 {[%clk 0:02:55]}  b6 {[%clk 0:02:53]} 7. Bd3 {[%clk 0:02:55]}  c5 {[%clk 0:02:53]} 8. O-O {[%clk 0:02:55]}  Bb7 {[%clk 0:02:51]} 9. c4 {[%clk 0:02:56]}  cxd4 {[%clk 0:02:50]} 10. Bxd4 {[%clk 0:02:47]}  Nc6 {[%clk 0:02:48]} 11. Bb2 {[%clk 0:02:43]}  Nb4 {[%clk 0:02:41]} 12. Be2 {[%clk 0:02:40]}  dxc4 {[%clk 0:02:34]} 13. Nxc4 {[%clk 0:02:37]}  Qxd1 {[%clk 0:02:06]} 14. Rfxd1 {[%clk 0:02:36]}  Rfd8 {[%clk 0:02:05]} 15. a3 {[%clk 0:02:27]}  Na6 {[%clk 0:01:58]} 16. b4 {[%clk 0:02:19]}  Rac8 {[%clk 0:01:57]} 17. Rac1 {[%clk 0:02:05]}  Rxd1+ {[%clk 0:01:48]} 18. Bxd1 {[%clk 0:01:55]}  Nc7 {[%clk 0:01:37]} 19. Nd4 {[%clk 0:01:40]}  Nfd5 {[%clk 0:01:36]} 20. Bf3 {[%clk 0:01:31]}  Ne6 {[%clk 0:01:23]} 21. Kf1 {[%clk 0:00:15]}  Nxd4 {[%clk 0:00:47]} 22. Bxd4 {[%clk 0:00:14]}  Bxd4 {[%clk 0:00:45]} 23. exd4 {[%clk 0:00:08]}  b5 {[%clk 0:00:43]} 24. Na5 {[%clk 0:00:01]}  Rxc1+ {[%clk 0:00:43]} 25. Ke2 {[%clk 0:00:02]}  Ba8 {[%clk 0:00:42]} 26. Kd2 {[%clk 0:00:00]}  Ra1 {[%clk 0:00:41]} 0-1


[Site "https://www.chess.com"]

[Event "Titled Tuesday Blitz October 31 Early 2023"]
[White "Rodriguez Dominguez, Melissa"]
[Black "EvgenyBurmakin"]
[WhiteFideId "3517560"]
[WhiteElo "2203"]
[BlackElo "2370"]
[Result "0-1"]
[Round "8"]
[TimeControl "180+1"]
[Date "2023.10.31"]
[WhiteClock "0:00:00"]
[BlackClock "0:00:07"]
[Board "127"]

1. e4 {[%clk 0:03:00]}  c5 {[%clk 0:03:00]} 2. Nf3 {[%clk 0:02:59]}  d6 {[%clk 0:03:00]} 3. d4 {[%clk 0:02:58]}  cxd4 {[%clk 0:03:01]} 4. Nxd4 {[%clk 0:02:59]}  Nf6 {[%clk 0:03:01]} 5. Nc3 {[%clk 0:02:58]}  a6 {[%clk 0:03:01]} 6. Bc4 {[%clk 0:02:58]}  e6 {[%clk 0:02:57]} 7. Bb3 {[%clk 0:02:58]}  b5 {[%clk 0:02:53]} 8. O-O {[%clk 0:02:57]}  b4 {[%clk 0:02:48]} 9. Na4 {[%clk 0:02:41]}  Nxe4 {[%clk 0:02:42]} 10. Qf3 {[%clk 0:02:38]}  d5 {[%clk 0:02:41]} 11. Bf4 {[%clk 0:02:14]}  Bb7 {[%clk 0:02:28]} 12. Rad1 {[%clk 0:01:54]}  Bd6 {[%clk 0:02:24]} 13. Bxd6 {[%clk 0:01:13]}  Qxd6 {[%clk 0:02:21]} 14. Ne2 {[%clk 0:01:10]}  f5 {[%clk 0:02:02]} 15. Qh5+ {[%clk 0:01:04]}  g6 {[%clk 0:02:01]} 16. Qh6 {[%clk 0:01:03]}  Qf8 {[%clk 0:01:53]} 17. Qe3 {[%clk 0:00:56]}  Qd6 {[%clk 0:01:22]} 18. Nb6 {[%clk 0:00:51]}  O-O {[%clk 0:01:22]} 19. Nxa8 {[%clk 0:00:50]}  Bxa8 {[%clk 0:01:23]} 20. f3 {[%clk 0:00:50]}  Nc5 {[%clk 0:01:20]} 21. Nf4 {[%clk 0:00:42]}  Nbd7 {[%clk 0:01:14]} 22. Rfe1 {[%clk 0:00:37]}  Nxb3 {[%clk 0:01:10]} 23. axb3 {[%clk 0:00:34]}  Re8 {[%clk 0:01:08]} 24. Nxe6 {[%clk 0:00:32]}  Nf8 {[%clk 0:01:02]} 25. Qc5 {[%clk 0:00:26]}  Rxe6 {[%clk 0:00:56]} 26. Qxd6 {[%clk 0:00:25]}  Rxd6 {[%clk 0:00:57]} 27. Re8 {[%clk 0:00:25]}  Bc6 {[%clk 0:00:53]} 28. Ra8 {[%clk 0:00:24]}  Bb5 {[%clk 0:00:50]} 29. c4 {[%clk 0:00:20]}  bxc3 {[%clk 0:00:47]} 30. bxc3 {[%clk 0:00:21]}  Rd7 {[%clk 0:00:35]} 31. c4 {[%clk 0:00:17]}  dxc4 {[%clk 0:00:34]} 32. Rxd7 {[%clk 0:00:17]}  Bxd7 {[%clk 0:00:34]} 33. bxc4 {[%clk 0:00:17]}  Kf7 {[%clk 0:00:29]} 34. Rxa6 {[%clk 0:00:17]}  Ne6 {[%clk 0:00:29]} 35. Ra7 {[%clk 0:00:16]}  Ke7 {[%clk 0:00:29]} 36. Kf2 {[%clk 0:00:16]}  Kd6 {[%clk 0:00:27]} 37. Ke3 {[%clk 0:00:15]}  h6 {[%clk 0:00:27]} 38. g3 {[%clk 0:00:14]}  g5 {[%clk 0:00:26]} 39. h4 {[%clk 0:00:13]}  f4+ {[%clk 0:00:23]} 40. Kf2 {[%clk 0:00:12]}  Nd4 {[%clk 0:00:13]} 41. Ra6+ {[%clk 0:00:10]}  Bc6 {[%clk 0:00:13]} 42. Ra7 {[%clk 0:00:06]}  gxh4 {[%clk 0:00:09]} 43. gxh4 {[%clk 0:00:05]}  Nxf3 {[%clk 0:00:09]} 44. h5 {[%clk 0:00:04]}  Ne5 {[%clk 0:00:08]} 45. Rh7 {[%clk 0:00:03]}  Kc5 {[%clk 0:00:08]} 46. Kf1 {[%clk 0:00:02]}  Ng4 {[%clk 0:00:07]} 47. Rg7 {[%clk 0:00:01]}  Ne3+ {[%clk 0:00:07]} 48. Ke1 {[%clk 0:00:01]}  Nf5 {[%clk 0:00:07]} 49. Rf7 {[%clk 0:00:00]}  Be4 {[%clk 0:00:07]} 0-1


[Site "https://www.chess.com"]

[Event "Titled Tuesday Blitz October 31 Early 2023"]
[White "Schut, Han"]
[Black "Ghosh, Chanchal Kumer"]
[WhiteFideId "1005561"]
[BlackFideId "10201858"]
[WhiteElo "2286"]
[BlackElo "1977"]
[Result "1-0"]
[Round "8"]
[TimeControl "180+1"]
[Date "2023.10.31"]
[WhiteClock "0:00:35"]
[BlackClock "0:00:00"]
[Board "135"]

1. e4 {[%clk 0:02:59]}  c5 {[%clk 0:02:59]} 2. Nf3 {[%clk 0:02:58]}  d6 {[%clk 0:02:59]} 3. d4 {[%clk 0:02:59]}  cxd4 {[%clk 0:03:00]} 4. Nxd4 {[%clk 0:03:00]}  Nf6 {[%clk 0:03:01]} 5. f3 {[%clk 0:03:00]}  a6 {[%clk 0:03:01]} 6. c4 {[%clk 0:03:00]}  e5 {[%clk 0:03:01]} 7. Nc2 {[%clk 0:03:01]}  Be6 {[%clk 0:03:02]} 8. Nc3 {[%clk 0:03:01]}  Be7 {[%clk 0:03:02]} 9. Be3 {[%clk 0:03:02]}  O-O {[%clk 0:03:02]} 10. Qd2 {[%clk 0:03:02]}  Nbd7 {[%clk 0:03:02]} 11. Rc1 {[%clk 0:03:03]}  Rc8 {[%clk 0:03:02]} 12. b3 {[%clk 0:03:03]}  Ne8 {[%clk 0:02:48]} 13. Bd3 {[%clk 0:03:01]}  f5 {[%clk 0:02:43]} 14. exf5 {[%clk 0:03:01]}  Bxf5 {[%clk 0:02:44]} 15. Bxf5 {[%clk 0:03:01]}  Rxf5 {[%clk 0:02:45]} 16. O-O {[%clk 0:02:53]}  Rh5 {[%clk 0:02:42]} 17. Nd5 {[%clk 0:02:49]}  Nef6 {[%clk 0:02:32]} 18. Ncb4 {[%clk 0:02:45]}  a5 {[%clk 0:02:31]} 19. Nxf6+ {[%clk 0:02:43]}  Nxf6 {[%clk 0:02:31]} 20. Nd5 {[%clk 0:02:43]}  Nxd5 {[%clk 0:02:09]} 21. Qxd5+ {[%clk 0:02:41]}  Kh8 {[%clk 0:02:08]} 22. Qxb7 {[%clk 0:02:41]}  Rb8 {[%clk 0:02:00]} 23. Qd5 {[%clk 0:02:25]}  Qe8 {[%clk 0:01:55]} 24. c5 {[%clk 0:01:41]}  dxc5 {[%clk 0:01:49]} 25. Bxc5 {[%clk 0:01:41]}  e4 {[%clk 0:01:32]} 26. Qd4 {[%clk 0:01:40]}  Rd8 {[%clk 0:01:06]} 27. Qf2 {[%clk 0:01:27]}  exf3 {[%clk 0:00:50]} 28. Bxe7 {[%clk 0:01:22]}  Qxe7 {[%clk 0:00:49]} 29. Qxf3 {[%clk 0:01:19]}  Rg5 {[%clk 0:00:36]} 30. Rce1 {[%clk 0:01:07]}  Qa7+ {[%clk 0:00:33]} 31. Qf2 {[%clk 0:01:07]}  Qxf2+ {[%clk 0:00:31]} 32. Rxf2 {[%clk 0:01:07]}  h6 {[%clk 0:00:31]} 33. g3 {[%clk 0:00:58]}  Rd4 {[%clk 0:00:28]} 34. Kg2 {[%clk 0:00:56]}  Kh7 {[%clk 0:00:26]} 35. Rb1 {[%clk 0:00:56]}  h5 {[%clk 0:00:24]} 36. Rbf1 {[%clk 0:00:55]}  h4 {[%clk 0:00:23]} 37. Rf3 {[%clk 0:00:45]}  hxg3 {[%clk 0:00:18]} 38. Rxg3 {[%clk 0:00:41]}  Rd2+ {[%clk 0:00:17]} 39. Rf2 {[%clk 0:00:41]}  Rxf2+ {[%clk 0:00:17]} 40. Kxf2 {[%clk 0:00:42]}  Rc5 {[%clk 0:00:17]} 41. Re3 {[%clk 0:00:37]}  Rc2+ {[%clk 0:00:16]} 42. Re2 {[%clk 0:00:37]}  Rc5 {[%clk 0:00:16]} 43. Rb2 {[%clk 0:00:36]}  g5 {[%clk 0:00:15]} 44. a3 {[%clk 0:00:36]}  Kh6 {[%clk 0:00:15]} 45. b4 {[%clk 0:00:37]}  axb4 {[%clk 0:00:16]} 46. axb4 {[%clk 0:00:38]}  Rb5 {[%clk 0:00:16]} 47. Ke3 {[%clk 0:00:38]}  Kh5 {[%clk 0:00:17]} 48. Kd4 {[%clk 0:00:38]}  Kh4 {[%clk 0:00:14]} 49. Kc4 {[%clk 0:00:38]}  Rb8 {[%clk 0:00:15]} 50. b5 {[%clk 0:00:38]}  g4 {[%clk 0:00:15]} 51. b6 {[%clk 0:00:37]}  Kh3 {[%clk 0:00:15]} 52. Kc5 {[%clk 0:00:37]}  Rc8+ {[%clk 0:00:14]} 53. Kd6 {[%clk 0:00:37]}  Rb8 {[%clk 0:00:13]} 54. Kc7 {[%clk 0:00:37]}  Rg8 {[%clk 0:00:13]} 55. b7 {[%clk 0:00:37]}  Rg7+ {[%clk 0:00:13]} 56. Kb6 {[%clk 0:00:35]}  Rg6+ {[%clk 0:00:13]} 57. Ka7 {[%clk 0:00:35]}  Rg7 {[%clk 0:00:13]} 58. Ka8 {[%clk 0:00:36]}  Rg5 {[%clk 0:00:00]} 59. b8=Q {[%clk 0:00:35]} 1-0


[Site "https://www.chess.com"]

[Event "Titled Tuesday Blitz October 31 Early 2023"]
[White "Elbebiber"]
[Black "Juicy_Fork"]
[WhiteElo "2128"]
[BlackElo "2402"]
[Result "1-0"]
[Round "8"]
[TimeControl "180+1"]
[Date "2023.10.31"]
[WhiteClock "0:00:40"]
[BlackClock "0:00:05"]
[Board "138"]

1. f4 {[%clk 0:03:00]}  e5 {[%clk 0:02:56]} 2. fxe5 {[%clk 0:03:00]}  d6 {[%clk 0:02:57]} 3. exd6 {[%clk 0:02:56]}  Bxd6 {[%clk 0:02:57]} 4. Nf3 {[%clk 0:02:55]}  g5 {[%clk 0:02:57]} 5. d4 {[%clk 0:02:53]}  Nc6 {[%clk 0:02:46]} 6. Bxg5 {[%clk 0:02:43]}  Be7 {[%clk 0:02:44]} 7. Bxe7 {[%clk 0:02:34]}  Qxe7 {[%clk 0:02:45]} 8. c3 {[%clk 0:02:28]}  Nf6 {[%clk 0:02:44]} 9. Qd3 {[%clk 0:02:16]}  Bg4 {[%clk 0:02:38]} 10. Nbd2 {[%clk 0:02:13]}  O-O-O {[%clk 0:02:33]} 11. O-O-O {[%clk 0:02:04]}  Nd5 {[%clk 0:02:29]} 12. e4 {[%clk 0:01:56]}  Nf4 {[%clk 0:02:26]} 13. Qe3 {[%clk 0:01:55]}  a6 {[%clk 0:02:25]} 14. Qxf4 {[%clk 0:01:53]}  Bxf3 {[%clk 0:02:05]} 15. Nxf3 {[%clk 0:01:47]}  f6 {[%clk 0:02:01]} 16. Bd3 {[%clk 0:01:46]}  Rhg8 {[%clk 0:01:59]} 17. g3 {[%clk 0:01:45]}  Qf7 {[%clk 0:01:50]} 18. Kb1 {[%clk 0:01:41]}  Ne7 {[%clk 0:01:47]} 19. Rhe1 {[%clk 0:01:38]}  Kb8 {[%clk 0:01:46]} 20. Nh4 {[%clk 0:01:33]}  Rd6 {[%clk 0:01:42]} 21. Nf5 {[%clk 0:01:31]}  Rb6 {[%clk 0:01:40]} 22. Nxe7 {[%clk 0:01:28]}  Qxe7 {[%clk 0:01:41]} 23. Bc4 {[%clk 0:01:25]}  Rd8 {[%clk 0:01:37]} 24. e5 {[%clk 0:01:18]}  fxe5 {[%clk 0:01:32]} 25. Qxe5 {[%clk 0:01:16]}  Qa3 {[%clk 0:01:31]} 26. Bb3 {[%clk 0:01:12]}  Qf8 {[%clk 0:01:31]} 27. Qe7 {[%clk 0:01:10]}  Qh8 {[%clk 0:01:28]} 28. Qe5 {[%clk 0:01:07]}  Qf8 {[%clk 0:01:26]} 29. Re2 {[%clk 0:01:04]}  Qf3 {[%clk 0:01:20]} 30. Qe3 {[%clk 0:01:02]}  Qf5+ {[%clk 0:01:16]} 31. Qe4 {[%clk 0:01:02]}  Qb5 {[%clk 0:01:14]} 32. Qd3 {[%clk 0:00:58]}  Qh5 {[%clk 0:01:03]} 33. Rde1 {[%clk 0:00:56]}  a5 {[%clk 0:00:59]} 34. Kc2 {[%clk 0:00:55]}  Rf8 {[%clk 0:00:54]} 35. Qe4 {[%clk 0:00:51]}  Qb5 {[%clk 0:00:49]} 36. Qd3 {[%clk 0:00:50]}  Qc6 {[%clk 0:00:44]} 37. Re6 {[%clk 0:00:48]}  Qg2+ {[%clk 0:00:36]} 38. R1e2 {[%clk 0:00:48]}  Qg1 {[%clk 0:00:19]} 39. Rxb6 {[%clk 0:00:46]}  cxb6 {[%clk 0:00:18]} 40. Qe3 {[%clk 0:00:44]}  Qa1 {[%clk 0:00:05]} 41. Re1 {[%clk 0:00:40]} 1-0


[Site "https://www.chess.com"]

[Event "Titled Tuesday Blitz October 31 Early 2023"]
[White "Vifleemskaia, Svetlana"]
[Black "ivana_999"]
[WhiteFideId "4129490"]
[WhiteElo "2255"]
[BlackElo "2040"]
[Result "1-0"]
[Round "8"]
[TimeControl "180+1"]
[Date "2023.10.31"]
[WhiteClock "0:01:25"]
[BlackClock "0:00:00"]
[Board "139"]

1. d4 {[%clk 0:03:00]}  Nf6 {[%clk 0:02:59]} 2. c4 {[%clk 0:02:59]}  c5 {[%clk 0:02:59]} 3. d5 {[%clk 0:02:59]}  e5 {[%clk 0:03:00]} 4. Nc3 {[%clk 0:02:59]}  d6 {[%clk 0:03:00]} 5. e4 {[%clk 0:03:00]}  Nbd7 {[%clk 0:03:01]} 6. Nge2 {[%clk 0:03:00]}  Be7 {[%clk 0:03:01]} 7. Ng3 {[%clk 0:03:00]}  Nf8 {[%clk 0:03:01]} 8. Nf5 {[%clk 0:02:59]}  Bxf5 {[%clk 0:02:54]} 9. exf5 {[%clk 0:03:00]}  N8d7 {[%clk 0:02:52]} 10. Bd3 {[%clk 0:02:59]}  e4 {[%clk 0:02:38]} 11. Nxe4 {[%clk 0:02:58]}  Nxe4 {[%clk 0:02:33]} 12. Bxe4 {[%clk 0:02:58]}  Bf6 {[%clk 0:02:34]} 13. O-O {[%clk 0:02:57]}  O-O {[%clk 0:02:28]} 14. Be3 {[%clk 0:02:56]}  Ne5 {[%clk 0:02:25]} 15. Bd3 {[%clk 0:02:53]}  Nd7 {[%clk 0:02:20]} 16. Rb1 {[%clk 0:02:51]}  a5 {[%clk 0:02:19]} 17. b3 {[%clk 0:02:48]}  Be5 {[%clk 0:02:15]} 18. f4 {[%clk 0:02:45]}  Bf6 {[%clk 0:02:15]} 19. g4 {[%clk 0:02:44]}  h6 {[%clk 0:02:07]} 20. Qf3 {[%clk 0:02:42]}  Re8 {[%clk 0:02:07]} 21. Bf2 {[%clk 0:02:42]}  Bh4 {[%clk 0:02:02]} 22. Rfe1 {[%clk 0:02:27]}  Bxf2+ {[%clk 0:02:01]} 23. Qxf2 {[%clk 0:02:24]}  f6 {[%clk 0:01:58]} 24. Kg2 {[%clk 0:02:22]}  Qc7 {[%clk 0:01:47]} 25. Re6 {[%clk 0:02:21]}  Nf8 {[%clk 0:01:45]} 26. Qe3 {[%clk 0:02:17]}  Nxe6 {[%clk 0:01:43]} 27. fxe6 {[%clk 0:02:18]}  Re7 {[%clk 0:01:41]} 28. Qe4 {[%clk 0:02:17]}  g6 {[%clk 0:01:17]} 29. Qxg6+ {[%clk 0:02:13]}  Rg7 {[%clk 0:01:17]} 30. Qf5 {[%clk 0:02:09]}  Qe7 {[%clk 0:01:14]} 31. Kf3 {[%clk 0:02:07]}  b6 {[%clk 0:01:05]} 32. h4 {[%clk 0:02:05]}  Rf8 {[%clk 0:00:57]} 33. a3 {[%clk 0:01:57]}  Ra8 {[%clk 0:00:32]} 34. a4 {[%clk 0:01:57]}  Rf8 {[%clk 0:00:26]} 35. Qh5 {[%clk 0:01:55]}  f5 {[%clk 0:00:20]} 36. g5 {[%clk 0:01:47]}  hxg5 {[%clk 0:00:15]} 37. hxg5 {[%clk 0:01:46]}  Rh7 {[%clk 0:00:14]} 38. Qg6+ {[%clk 0:01:45]}  Qg7 {[%clk 0:00:14]} 39. Bxf5 {[%clk 0:01:43]}  Rh3+ {[%clk 0:00:06]} 40. Kg4 {[%clk 0:01:37]}  Qxg6 {[%clk 0:00:04]} 41. Bxg6 {[%clk 0:01:37]}  Re3 {[%clk 0:00:01]} 42. f5 {[%clk 0:01:26]}  Re4+ {[%clk 0:00:01]} 43. Kf3 {[%clk 0:01:25]}  Kg7 {[%clk 0:00:00]} 44. Kxe4 {[%clk 0:01:25]} 1-0


[Site "https://www.chess.com"]